Cogmind - Beta 14 @@@ ROGUE MODE // 2024.08.22 @ 18:44:36 Player: Dosh Result: Destroyed by as-69587 with Assembled Blade Performance ------------- Evolutions (0) 0 Regions Visited (4) 800 Robots Destroyed (47) 235 Value Destroyed (1278) 1278 Prototype IDs (27) 540 Alien Tech Used (0) 0 Bonus (306) 306 TOTAL SCORE: 3159 Bonus ------- High Alert Combat Kills 6 Aligned with FarCom 300 Cogmind --------- Core Integrity 0/250 Matter 281/300 Energy 75/100 System Corruption 0% Temperature Cool (0) Movement Walking (260) Ox2 Location -9/Mines Parts ------- > --- POWER (1) -------- (None) > --- PROPULSION (2) --- Aluminum Leg > --- UTILITY (2) ------ Improved Heat Sink Large Storage Unit > --- WEAPON (2) ------- Spread Laser Spread Laser > --- INVENTORY (15) --- Structural Scanner Medium Armor Plating Medium Armor Plating Medium Armor Plating Medium Armor Plating Splice Drone Bay (6/6) Supersonic Drone Bay (1/1) Spread Laser AWS/Thermal Assault Rifle Battle Cannon Peak State ------------ > --- POWER ------------ Ion Engine > --- PROPULSION ------- Light Treads Light Treads > --- UTILITY ---------- Large Storage Unit Splice Drone Bay > --- WEAPON ----------- Assault Rifle Assault Rifle > --- INVENTORY -------- Improved Heat Sink Structural Scanner Medium Armor Plating Medium Armor Plating Medium Armor Plating Medium Armor Plating Spread Laser Spread Laser Spread Laser Spread Laser [Rating: 15] Favorites ----------- Power Light Ion Engine Engine Light Ion Engine Propulsion Light Treads Treads Light Treads Leg Aluminum Leg Utility Large Storage Unit Device Improved Heat Sink Storage Large Storage Unit Protection Medium Armor Plating Weapon Spread Laser Energy Gun Spread Laser Ballistic Gun Assault Rifle Ballistic Cannon Battle Cannon Build | -11 -10 -10 -10 -9 ------- Run | Yrd Mat Min Exi Min Slots Evolved . | . . . . . Power . | . . . . . Propulsion . | . . . . . Utility . | . . . . . Weapon . | . . . . . Parts Attached 28 | 6 9 9 . 4 Power 3 | 1 1 1 . . Engine 3 | 1 1 1 . . Core . | . . . . . Reactor . | . . . . . Propulsion 5 | 2 . 2 . 1 Treads 2 | 2 . . . . Leg 3 | . . 2 . 1 Wheel . | . . . . . Hover . | . . . . . Flight . | . . . . . Utility 8 | 1 4 3 . . Device 3 | . 1 2 . . Storage 2 | 1 1 . . . Processor . | . . . . . Hackware . | . . . . . Protection 3 | . 2 1 . . Artifact . | . . . . . Weapon 12 | 2 4 3 . 3 Energy Gun 7 | . 2 3 . 2 Energy Cannon . | . . . . . Ballistic Gun 4 | 2 2 . . . Ballistic Cannon 1 | . . . . 1 Launcher . | . . . . . Special Weapon . | . . . . . Impact Weapon . | . . . . . Slashing Weapon . | . . . . . Piercing Weapon . | . . . . . Special Melee Weapon . | . . . . . Unidentified Prototypes 1 | . . 1 . . Parts Lost 8 | . . 4 . 4 Power 2 | . . 1 . 1 Propulsion 4 | . . 2 . 2 Utility . | . . . . . Weapon 2 | . . 1 . 1 Highest Loss Streak 4 | . . 1 . 4 To Critical Strikes 1 | . . . . 1 Average Slot Usage (%) 99 | . 99 99 100 98 Engine 13 | . 14 13 14 13 Treads 14 | . 28 18 . . Leg 13 | . . 8 28 27 Device 8 | . 2 6 14 14 Storage 14 | . 14 14 14 14 Protection 5 | . 10 7 . . Energy Gun 14 | . . 13 28 23 Ballistic Gun 12 | . 27 14 . . Ballistic Cannon 1 | . . . . 4 Peak Build Rating 15 | 6 11 15 15 15 Average Rating 11 | 4 8 11 13 14 On Entrance 8 | . 6 9 13 15 Naked Turns . | . . . . . Heaviest Build 38 | 14 38 37 30 30 Greatest Support 40 | 40 40 40 20 20 Greatest Overweight (x) 2 | . . 2 1 2 Average Overweight (x) . | . . . 1 1 Largest Inventory Capacity 15 | 8 15 15 15 15 Average Capacity 14 | 6 13 15 15 15 Most Carried 14 | 1 9 12 13 14 Average Carried 10 | . 7 10 10 13 Final Capacity 15 | 8 15 15 15 15 Final Carried 13 | 1 9 10 13 12 Class Distribution -------------------- 100% | Mutant Dominant Class ---------------- Mutant | -10/Materials Mutant | -10/Mines Mutant | -10/Exiles Mutant | -9/Mines Resources | -11 -10 -10 -10 -9 ----------- Run | Yrd Mat Min Exi Min Matter Collected 990 | 246 454 281 . 9 Remotely . | . . . . . Salvage Created 1491 | . 716 754 . 21 Parts 81 | . 38 42 . 1 Haulers Intercepted 2 | . 2 . . . Recyclers Shooed 1 | . . 1 . . Parts Field Recycled . | . . . . . Retrieved Matter . | . . . . . Parts Self-Destructed . | . . . . . Prevented . | . . . . . Kills | -11 -10 -10 -10 -9 ------- Run | Yrd Mat Min Exi Min Combat Hostiles Destroyed 47 | . 17 23 . 7 Guns 46 | . 17 23 . 6 Cannons 1 | . . . . 1 Classes Destroyed 7 | . 5 1 . 1 Hauler 2 | . 2 . . . Recycler 1 | . . 1 . . Operator 1 | . 1 . . . Watcher 1 | . 1 . . . Swarmer 11 | . 3 6 . 2 Grunt 31 | . 14 17 . . Assembled 5 | . . . . 5 Best Kill Streak 8 | . 8 3 . 3 Combat Bots Only 7 | . 7 3 . 3 Max Kills in Single Turn 2 | . 1 2 . 1 Gunslinging 1 | . . 1 . . Exploded . | . . . . . Melee . | . . . . . Uniques/NPCs Destroyed . | . . . . . Combat | -11 -10 -10 -10 -9 -------- Run | Yrd Mat Min Exi Min Hostile Shots Fired 180 | . 60 83 . 37 Missed 51 | . 19 23 . 9 Damage Taken 1573 | . 461 668 . 444 Core 261 | . 77 91 . 93 Absorbed by Shields . | . . . . . Regen/Repaired (Parts) 104 | . 104 . . . Core Remaining (%) 100 | 100 . . . . Volleys Fired 140 | . 63 56 . 21 Largest 2 | . 2 2 . 2 Hottest 130 | . 130 130 . 130 Shots Fired 266 | . 126 110 . 30 Gun 257 | . 126 110 . 21 Cannon 9 | . . . . 9 Launcher . | . . . . . Special . | . . . . . Kinetic 196 | . 120 67 . 9 Thermal 70 | . 6 43 . 21 Explosive . | . . . . . Electromagnetic . | . . . . . Robot Hit Streak 22 | . 22 22 . 7 Robot Miss Streak 10 | . 4 10 . 8 Penetration Max . | . . . . . Secondary Targets 3 | . 1 2 . . Max Gunslinging Chain 1 | . 1 1 . . Shots Hit Robots 175 | . 86 68 . 21 Core Hits 135 | . 42 69 . 24 Critical Kills 2 | . 2 . . . Critical Parts Destroyed 1 | . 1 . . . Critical Strikes 3 | . 3 . . . Destroy 3 | . 3 . . . Melee Attacks . | . . . . . Impact . | . . . . . Slashing . | . . . . . Piercing . | . . . . . Sneak Attacks . | . . . . . Combat Hostiles . | . . . . . Follow-up Attacks . | . . . . . Damage Inflicted 2497 | . 1142 1041 . 314 Guns 2339 | . 1125 977 . 237 Cannons 25 | . . . . 25 Explosions . | . . . . . Melee . | . . . . . Ramming 133 | . 17 64 . 52 Kinetic 1516 | . 1025 466 . 25 Thermal 848 | . 100 511 . 237 Explosive . | . . . . . Electromagnetic . | . . . . . Impact . | . . . . . Slashing . | . . . . . Piercing . | . . . . . Highest Corruption . | . . . . . Average Corruption . | . . . . . Corruption Purged . | . . . . . Corruption Blocked . | . . . . . Overload Shots . | . . . . . Overflow Damage . | . . . . . Projectiles . | . . . . . Explosions . | . . . . . Melee . | . . . . . Knockbacks . | . . . . . Impact . | . . . . . Kinetic . | . . . . . Secondary . | . . . . . Self-Inflicted Damage . | . . . . . Shots . | . . . . . Rammed 13 | . 6 7 . . Targets Rammed 31 | . 6 10 . 15 Kicked 17 | . . 2 . 15 Crushed 1 | . . 1 . . Highest Temperature 273 | . 234 273 . 56 Average Temperature 75 | . 104 73 . 24 Received Heat Transfer 588 | . 222 366 . . Effects 4 | . 2 2 . . Interference 4 | . 2 2 . . Siege Activations . | . . . . . Robots Corrupted . | . . . . . Combat Hostiles . | . . . . . Parts Fried . | . . . . . Impact Corruptions . | . . . . . Robots Melted . | . . . . . Combat Hostiles . | . . . . . Parts Melted 1 | . . 1 . . Heat Transferred 1065 | . 120 640 . 305 Parts Sabotaged . | . . . . . Parts Stolen . | . . . . . Parts Stripped . | . . . . . Power Chain Reactions . | . . . . . Alert | -11 -10 -10 -10 -9 ------- Run | Yrd Mat Min Exi Min Peak Influence 443 | . 443 238 . 22 Initial 83 | . . 83 . . Average 129 | . 266 122 . 8 Maximum Alert Level 2 | . 2 1 . . Low Security (%) 69 | 100 12 85 . 100 Level 1 29 | . 81 14 . . Level 2 1 | . 5 . . . Level 3 . | . . . . . Level 4 . | . . . . . Level 5 . | . . . . . High Security . | . . . . . Max Security . | . . . . . Squads Dispatched 6 | . 6 . . . Investigation 5 | . 5 . . . Extermination . | . . . . . Reinforcement 1 | . 1 . . . Assault . | . . . . . Garrison . | . . . . . Intercept . | . . . . . Searches Triggered . | . . . . . Construction Impeded . | . . . . . Haulers Reinforced . | . . . . . Active Scanning Responses . | . . . . . Cargo Convoy Interrupts . | . . . . . Stealth | -11 -10 -10 -10 -9 --------- Run | Yrd Mat Min Exi Min Distress Signals 4 | . 1 3 . . Communications Jammed . | . . . . . Distress Signals . | . . . . . Times Spotted 66 | . 24 30 . 12 Peak Tracking Total 4 | . 4 4 . 4 Tactical Retreats 5 | . . 3 . 2 Traps | -11 -10 -10 -10 -9 ------- Run | Yrd Mat Min Exi Min Traps Triggered 3 | . 3 . . . Indirectly . | . . . . . Trap Hack Attempts . | . . . . . Triggered . | . . . . . Disarmed . | . . . . . Reprogrammed . | . . . . . Reused . | . . . . . Traps Extracted . | . . . . . Installed . | . . . . . Triggered 1 | . . . . 1 Machines | -11 -10 -10 -10 -9 ---------- Run | Yrd Mat Min Exi Min Machines Disabled 2 | . 2 . . . Max in Single Turn 1 | . 1 . . . Machines Repaired . | . . . . . Machines Dismantled . | . . . . . Machines Sabotaged . | . . . . . Overloaded Fab Kills . | . . . . . Hacking | -11 -10 -10 -10 -9 --------- Run | Yrd Mat Min Exi Min Machines Accessed 13 | . 10 1 2 . Terminals 7 | . 7 . . . Fabricators . | . . . . . Repair Stations 1 | . 1 . . . Recycling Units 2 | . 2 . . . Scanalyzers . | . . . . . Garrison Access . | . . . . . Total Hacks 39 | . 36 1 2 . Successful 26 | . 23 1 2 . Failed 12 | . 12 . . . Catastrophic 1 | . 1 . . . Database Lockouts 1 | . 1 . . . Manual 21 | . 20 . 1 . Terminals 30 | . 30 . . . Fabricators . | . . . . . Repair Stations 4 | . 4 . . . Recycling Units 2 | . 2 . . . Scanalyzers . | . . . . . Garrison Access . | . . . . . Terminal Hacks 12 | . 9 1 2 . Record 1 | . . . 1 . Robot Schematic 1 | . 1 . . . Robot Analysis 1 | . 1 . . . Prototype ID Bank 3 | . 3 . . . Open Door 1 | . . 1 . . Locate Traps 1 | . 1 . . . Recall Investigation 1 | . 1 . . . Hauler Manifests 1 | . 1 . . . Zone Layout 1 | . 1 . . . Derelict Proto ID Bank 1 | . . . 1 . Fabricator Hacks . | . . . . . Repair Station Hacks 2 | . 2 . . . Scan Component 1 | . 1 . . . Repair 1 | . 1 . . . Recycling Unit Hacks . | . . . . . Scanalyzer . | . . . . . Garrison Access Hacks . | . . . . . Unauthorized Hacks 12 | . 12 . . . Terminals 10 | . 10 . . . Botnet 2 | . 2 . . . Operators 1 | . 1 . . . Skim 7 | . 7 . . . Fabricators . | . . . . . Repair Stations . | . . . . . Recycling Units 2 | . 2 . . . Tunnel 2 | . 2 . . . Scanalyzers . | . . . . . Garrison Access . | . . . . . Data Cores Recovered . | . . . . . Used . | . . . . . Hacking Detections 7 | . 7 . . . Full Trace Events 1 | . 1 . . . Feedback Events . | . . . . . Feedback Blocked . | . . . . . Robot Schematics Acquired 1 | . 1 . . . Robots Built . | . . . . . Authchips . | . . . . . Time . | . . . . . Total Robot Build Rating . | . . . . . Part Schematics Acquired . | . . . . . Parts Built . | . . . . . Authchips . | . . . . . Time . | . . . . . Total Part Build Rating . | . . . . . Parts Repaired 1 | . 1 . . . Time 16 | . 16 . . . Parts Recycled . | . . . . . Recycled Matter . | . . . . . Retrieved Matter . | . . . . . Retrieved Components . | . . . . . Parts Scanalyzed . | . . . . . Part Schematics Acquired . | . . . . . Parts Damaged . | . . . . . Bothacking | -11 -10 -10 -10 -9 ------------ Run | Yrd Mat Min Exi Min Used RIF Installer . | . . . . . Robots Hacked . | . . . . . Non-combat . | . . . . . Combat . | . . . . . Robot Hacks Applied . | . . . . . Relay Couplers Released . | . . . . . Fabnet Peak Effective % . | . . . . . Robots Rewired . | . . . . . Allies Hacked . | . . . . . Hacks Repelled . | . . . . . Allies | -11 -10 -10 -10 -9 -------- Run | Yrd Mat Min Exi Min Total Allies . | . . . . . Largest Group . | . . . . . Highest-Rated Group . | . . . . . Highest-Rated Ally . | . . . . . Total Orders . | . . . . . Ally Attacks . | . . . . . Total Damage . | . . . . . Kills . | . . . . . Allies Corrupted . | . . . . . Allies Melted . | . . . . . Intel | -11 -10 -10 -10 -9 ------- Run | Yrd Mat Min Exi Min Robot Analysis Total 1 | . 1 . . . Derelict Logs Recovered 2 | . . 1 . 1 Drone Launches . | . . . . . Drone Recoveries . | . . . . . Exploration | -11 -10 -10 -10 -9 ------------- Run | Yrd Mat Min Exi Min Turns Passed 4808 | 66 1204 1766 571 1201 Spaces Moved 2027 | 37 540 732 300 418 Core 3 | 3 . . . . Treads 1010 | 34 540 436 . . Legs 1014 | . . 296 300 418 Wheels . | . . . . . Hover . | . . . . . Flight . | . . . . . Fastest Speed 50 | 50 160 160 190 190 Average Speed 176 | 151 160 176 190 191 Slowest Speed 260 | 160 160 260 190 260 Overloaded Moves . | . . . . . Propulsion Burnouts . | . . . . . Robots Hopped . | . . . . . Cave-ins Triggered . | . . . . . Exploration Rate (%) 65 | 3 95 100 70 61 Regions Visited 4 Branch Regions 3 Pre-discovered Areas 4 | . 3 . 1 . Known Exits Taken 1 | . 1 . . . Unknown Exits Taken 3 | 1 . 1 1 . Scrap Searched 2 | . . 1 . 1 Spaces Dug 3 | . . . . 3 Terrain Destroyed 4 | . . . . 4 Melee . | . . . . . Projectile 4 | . . . . 4 AOE . | . . . . . Terrain Rammed . | . . . . . Walls Destroyed . | . . . . . Machines Disabled . | . . . . . Actions | -11 -10 -10 -10 -9 --------- Run | Yrd Mat Min Exi Min Total 2959 | 44 749 1089 301 776 Wait 718 | 1 121 279 . 317 Move 2023 | 36 539 731 299 418 Hop . | . . . . . Pick Up 17 | 1 9 4 2 1 Fast Attach 9 | 6 2 1 . . Attach 6 | . 1 3 . 2 Detach . | . . . . . Swap 13 | . 6 5 . 2 Drop 2 | . 2 . . . Fire 140 | . 63 56 . 21 Melee . | . . . . . Ram . | . . . . . Kick 17 | . . 2 . 15 Crush 14 | . 6 8 . . Escape Stasis . | . . . . . Rewire . | . . . . . Trap . | . . . . . Miscellaneous . | . . . . . Route ------- -11/Scrapyard -10/Materials (discovered 5 exits: [*Mat x3] / *Min / Sub) -10/Mines (discovered 4 exits: [*Mat x2] / *Exi / *Sub) -10/Exiles -9/Mines (discovered 1 exit: [*Mat]) History --------- Turn | Location | Event 4 | -11/Scrapyard | Discovered new exit (range 16) 67 | -11/Scrapyard | Entered Materials 331 | -10/Materials | Build established: Mutant 428 | -10/Materials | Destroyed 7 combat bots 470 | -10/Materials | Discovered new exit (range 10) 490 | -10/Materials | Central database locked down 818 | -10/Materials | Discovered new exit (range 14) 891 | -10/Materials | Learned location of 1 exit from Recycling 1005 | -10/Materials | Learned location of 1 exit from Recycling 1030 | -10/Materials | Repaired Med. Armor Plating 1047 | -10/Materials | Loaded intel: 17 trap records 1077 | -10/Materials | Learned location of Subcaves (-10) 1080 | -10/Materials | Discovered new exit (range 15) 1098 | -10/Materials | Learned location of 1 exit from Recycling 1128 | -10/Materials | Learned location of 1 exit from Storage 1169 | -10/Materials | Identified exit to Subcaves 1169 | -10/Materials | Identified exit to Mines 1271 | -10/Materials | Entered Mines 1290 | -10/Mines | Found the Drone Emporium 1295 | -10/Mines | Found Prototype Device 1296 | -10/Mines | Identified Splice Drone Bay 1316 | -10/Mines | Met a Derelict bent on vengeance 1513 | -10/Mines | Excavation squad dispatched 1513 | -10/Mines | A large section of the Mines collapsed 1763 | -10/Mines | Excavation squad dispatched 2013 | -10/Mines | Excavation squad dispatched 2263 | -10/Mines | Excavation squad dispatched 2280 | -10/Mines | Core integrity fell below 50% 2291 | -10/Mines | Discovered new exit (range 8) 2362 | -10/Mines | Learned 2 Materials zone layouts 2540 | -10/Mines | Discovered new exit (range 15) 2542 | -10/Mines | Discovered exit to Subcaves (range 5) 3028 | -10/Mines | Deemed a non-threat by the Exiles lab entrance 3030 | -10/Mines | Discovered new exit (range 5) 3037 | -10/Mines | Entered Exiles 3085 | -10/Exiles | Met 8R-AWN 3115 | -10/Exiles | Met EX-HEX 3203 | -10/Exiles | Met EX-DEC 3302 | -10/Exiles | Learned location of Zion (-6) 3341 | -10/Exiles | Met EX-BIN 3368 | -10/Exiles | Aligned with FarCom system 3370 | -10/Exiles | Given EX-Vault access code 3414 | -10/Exiles | Opened EX-Vault 3423 | -10/Exiles | Found Supersonic Drone Bay 3426 | -10/Exiles | Found AWS/Thermal 3467 | -10/Exiles | Warned to stay clear of 0b10 Research branches 3587 | -10/Exiles | Discovered new exit (range 14) 3608 | -10/Exiles | Stole two prototypes: Supersonic Drone Bay, AWS/Thermal 3608 | -10/Exiles | Entered Mines 3683 | -9/Mines | Learned 4 Materials zone layouts 3865 | -9/Mines | A weapon hastily lodged in a ceiling crevice suddenly fell to the ground 3870 | -9/Mines | Discovered new exit (range 12) 4374 | -9/Mines | Assembled infested the area 4745 | -9/Mines | Core integrity fell below 20% 4809 | -9/Mines | Destroyed by as-69587 with Assembled Blade Last Messages --------------- 04365_ Kicked T-07 Excavator. 04374_ ALERT: Infestation in the mines, dispatching Demolisher response squad. 04394_ Kicked S-10 Pest. 04411_ Kicked S-10 Pest out of the way. 04413_ S-10 Pest destroyed. 04435_ The unstable cave ceiling collapses. 04722_ Acquired 1 matter. 04739_ as-56771 destroyed. 04740_ Lgt. Ion Engine destroyed. 04744_ Critical hit (Destroy). 04744_ Spread Laser destroyed. 04749_ Aluminum Leg destroyed. 04752_ as-16160 destroyed. 04758_ as-08245 destroyed. 04772_ Acquired 6 matter. 04779_ Aluminum Leg destroyed. 04779_ as-09604 destroyed. 04787_ as-89789 destroyed. 04803_ Acquired 2 matter. Map ----- +----------------------------------------------------+ | ?????????????????????????????????????????????????? | | ?????????????????????????????????????????????????? | | ?????????????????????????????????????????????????? | | ?????????????????????????????????????????????????? | | ?????????????????????????????????????????????????? | | ?????????????????????????????????????????????????? | | ?????????????????????????????????????????????????? | | ?????????????????????????????????????????????????? | | ?????????????????????????????????????????????????? | | ????????????????????????????????????#????????????? | | ??????????????????????????????????? #????????????? | | ???????????????????????????????????%#????????????? | | ?????????????????????????????????? ! ????????????? | | ?????????????????????????????????? ?????????????? | | ????????????????????????????????? ??????????????? | | ????????????????????????????????# ???????????????? | | ????????????????????????????????%[? #???????????? | | ??????????????????????????????? ? ##?????????? | | ??????????????????????????????? ?? ##????????? | | ???????????????????????###???? #?? ##???????? | | ??????????????????????## ##### #?? ##??????? | | ??????????????????????# #= % ### ???????? | | ??????????????????????### #"##### ?????????? | | ????????????????????????# ###??# ??????????? | | ??###????##########?????# #???## ???????????? | | ?## ##???# ####??#@#???# #????????????? | | ?# #???# ####a##### #?????????????? | | ?# ##??# ## % ## [!| ##????????????? | | ?## ##?# ### # =[==% #????????????? | | ??## ### #?## # ## #### #????????????? | | ???# #?## # ### #??# ##???????????? | | ???# ###### * ##?# #??# #???????????? | | ???## ###### !%= ###??# #### ##????####??? | | ????##### = * ###????# ###### ##?? | | ????????# ### ##??????###### ## #?? | | ????????# %#?####????????????## ##? | | ##??????# #??????????????????## #? | | #??????# #???????????????????##### #? | | ####???# #???########????????????## #? | | % #???# #???# #?????????????### ## #? | | ##%#???# #???# #???????????????# ### ## | | ## #??## ##??# """ #???????????????# #?# # | | ## #?## #### """ #???????????????# #?## # | | ### ### """ #???????????????# #??### # | | ??# %! # # #??????????????## ###### # | | ??#### ## ########?????####????## # | | ###### ### #???????????## ##??## # | | ###?# #???????????# #### ######## | | ####### #???# #???????????# ## ##????### | | ??????# #???# #????????????# ##????# # | +----------------------------------------------------+ Best States ------------- Heat Dissipation 39 Energy Generation 10 Energy Capacity 250 Matter Stores 300 Matter Capacity 300 Sight Range 16 Terrain Scan Density 10 Armor Coverage 225 Evasion (%) 40 Recoil Reduction 2 Item Schematics ----------------- None Robot Schematics ------------------ M-13 Machinist | -10/Materials | Hacked Fabricated ------------ Nothing Alien Tech Used ----------------- None Achievements -------------- None Challenges ------------ None Game ------ Seed FortressBombJammer Manual? 0 Play Time 00:16:54 Cumulative 490.1 hours Start 2024.08.22 @ 18:30:35 End 2024.08.22 @ 18:44:36 Sessions 1 Manual Loads 0 Difficulty Rogue Special Mode None Game No. 290 Rogue 290 Adventurer 0 Explorer 0 Win Type - Total 35 Types 25/2/4/1/1/0/1/1/0 Lore% 80 Gallery% 85 Achievement% 85 Wizard Run 0 Options --------- Layout 0 ASCII 0 Keyboard 1 Movement Numpad Keybinds 0 Fullscreen 2 Font 18/SmallcapsGlow Map View 76x50 Zoom Use 0% Tactical HUD 1 Map Filters NONE Filters NONE Steam 1 RUN: e21ed53c-b0b7-4e75-b4cb-83b7b7defc4f